[Event "Early-Titled-Tuesday-Blitz-February-06-2024"]
[Site "Chess.com"]
[Date "2024.02.06"]
[Round "2"]
[White "Kleyton_Lima"]
[Black "Janosik"]
[Result "0-1"]
[WhiteElo "2593"]
[BlackElo "2872"]
[TimeControl "180+1"]
[EndTime "8:18:49 PST"]
[Termination "Janosik won by resignation"]

1. e4 {[%clk 0:03:00.9]} 1... e5 {[%clk 0:02:59.5]} 2. Nf3 {[%clk 0:03:00.9]}
2... Nc6 {[%clk 0:03:00.2]} 3. d4 {[%clk 0:03:01.4]} 3... exd4 {[%clk
0:03:00.2]} 4. Nxd4 {[%clk 0:03:02.3]} 4... Bc5 {[%clk 0:03:00.2]} 5. Nb3 {[%clk
0:03:00.9]} 5... Bb6 {[%clk 0:03:00.5]} 6. Nc3 {[%clk 0:03:01.6]} 6... Nf6
{[%clk 0:03:00.8]} 7. Bg5 {[%clk 0:03:00.2]} 7... h6 {[%clk 0:03:01.1]} 8. Bh4
{[%clk 0:02:57.8]} 8... d6 {[%clk 0:03:01.2]} 9. Bb5 {[%clk 0:02:52.4]} 9... O-O
{[%clk 0:02:45.3]} 10. f3 {[%clk 0:02:51.3]} 10... Ne5 {[%clk 0:02:44.6]} 11.
Nd5 {[%clk 0:02:49.7]} 11... g5 {[%clk 0:02:40.6]} 12. Nxb6 {[%clk 0:02:45.7]}
12... axb6 {[%clk 0:02:38.8]} 13. Bg3 {[%clk 0:02:46]} 13... Nh5 {[%clk
0:02:31.9]} 14. O-O {[%clk 0:02:38.6]} 14... Qf6 {[%clk 0:02:20.1]} 15. Nd4
{[%clk 0:02:25.6]} 15... c6 {[%clk 0:02:10.7]} 16. Be2 {[%clk 0:02:24.7]} 16...
Bd7 {[%clk 0:02:07.6]} 17. Qd2 {[%clk 0:02:21.8]} 17... Nf4 {[%clk 0:02:00.2]}
18. Bxf4 {[%clk 0:02:21.6]} 18... gxf4 {[%clk 0:02:00.4]} 19. g3 {[%clk
0:02:11.3]} 19... Ng6 {[%clk 0:01:49.3]} 20. a3 {[%clk 0:02:03.8]} 20... Kh8
{[%clk 0:01:43.6]} 21. Rad1 {[%clk 0:01:59.9]} 21... Rg8 {[%clk 0:01:44]} 22.
Kf2 {[%clk 0:01:57]} 22... c5 {[%clk 0:01:33.4]} 23. Nf5 {[%clk 0:01:50.9]}
23... Bxf5 {[%clk 0:01:07.6]} 24. exf5 {[%clk 0:01:51.8]} 24... Qxf5 {[%clk
0:01:08.5]} 25. Bd3 {[%clk 0:01:43.7]} 25... Qh3 {[%clk 0:01:06.9]} 26. Rh1
{[%clk 0:01:34.3]} 26... Rae8 {[%clk 0:00:32.4]} 27. Bxg6 {[%clk 0:01:33]} 27...
Rxg6 {[%clk 0:00:33.3]} 28. Qxf4 {[%clk 0:01:32]} 28... Qd7 {[%clk 0:00:28.3]}
29. Rhe1 {[%clk 0:01:29.4]} 29... Rxe1 {[%clk 0:00:28.4]} 30. Rxe1 {[%clk
0:01:28.2]} 30... Kg7 {[%clk 0:00:29.1]} 31. Kg2 {[%clk 0:01:24.2]} 31... Qb5
{[%clk 0:00:29.3]} 32. b3 {[%clk 0:01:16.1]} 32... Qa5 {[%clk 0:00:29.7]} 33.
Rd1 {[%clk 0:01:16.5]} 33... Qxa3 {[%clk 0:00:27.6]} 34. Rxd6 {[%clk 0:01:15.9]}
34... Rxd6 {[%clk 0:00:27.7]} 35. Qxd6 {[%clk 0:01:15.6]} 35... Qb2 {[%clk
0:00:28.6]} 36. Qd3 {[%clk 0:01:12.2]} 36... b5 {[%clk 0:00:28.9]} 37. h4 {[%clk
0:01:06.6]} 37... b4 {[%clk 0:00:28.6]} 38. g4 {[%clk 0:01:03.7]} 38... b5
{[%clk 0:00:28.7]} 39. g5 {[%clk 0:00:51.6]} 39... hxg5 {[%clk 0:00:29.6]} 40.
hxg5 {[%clk 0:00:52.4]} 40... Qe5 {[%clk 0:00:27.9]} 41. Qxb5 {[%clk 0:00:46.5]}
41... Qxg5+ {[%clk 0:00:26.7]} 42. Kh3 {[%clk 0:00:38.3]} 42... Qf5+ {[%clk
0:00:26.4]} 43. Kg3 {[%clk 0:00:37.4]} 43... Qxc2 {[%clk 0:00:26.6]} 44. Qd7
{[%clk 0:00:25.6]} 44... Qxb3 {[%clk 0:00:19.6]} 45. Qg4+ {[%clk 0:00:25.4]}
45... Kf6 {[%clk 0:00:20.2]} 46. Qf4+ {[%clk 0:00:20.4]} 46... Ke6 {[%clk
0:00:18.7]} 47. Qe4+ {[%clk 0:00:19.2]} 47... Kd6 {[%clk 0:00:15.6]} 48. Qf4+
{[%clk 0:00:19.8]} 48... Kc6 {[%clk 0:00:15.7]} 49. Qe4+ {[%clk 0:00:18.8]}
49... Qd5 {[%clk 0:00:15.9]} 50. Qe8+ {[%clk 0:00:19.4]} 50... Qd7 {[%clk
0:00:16.2]} 51. Qa8+ {[%clk 0:00:19.1]} 51... Kb5 {[%clk 0:00:16.1]} 52. Qb8+
{[%clk 0:00:16.5]} 52... Kc4 {[%clk 0:00:16.2]} 53. Qf4+ {[%clk 0:00:15.8]}
53... Kb3 {[%clk 0:00:16.4]} 54. Qc1 {[%clk 0:00:14.9]} 54... Qd6+ {[%clk
0:00:15.4]} 55. f4 {[%clk 0:00:15.5]} 55... Qd3+ {[%clk 0:00:14.9]} 56. Kg4
{[%clk 0:00:16.2]} 56... Qc3 {[%clk 0:00:15.8]} 57. Qb1+ {[%clk 0:00:15.7]}
57... Ka4 {[%clk 0:00:15.8]} 58. Qa2+ {[%clk 0:00:16]} 58... Kb5 {[%clk
0:00:16.1]} 59. Qxf7 {[%clk 0:00:15.9]} 59... b3 {[%clk 0:00:15.4]} 60. Qb7+
{[%clk 0:00:16]} 60... Kc4 {[%clk 0:00:15.9]} 61. f5 {[%clk 0:00:15.6]} 61... b2
{[%clk 0:00:15.4]} 62. Kg5 {[%clk 0:00:14.7]} 62... Qc1+ {[%clk 0:00:15]} 63.
Kf6 {[%clk 0:00:13.7]} 63... b1=Q {[%clk 0:00:15.9]} 64. Qf7+ {[%clk 0:00:13.7]}
64... Kb4 {[%clk 0:00:15.3]} 65. Qb7+ {[%clk 0:00:13.6]} 65... Kc3 {[%clk
0:00:15.8]} 66. Qc7 {[%clk 0:00:14.1]} 66... Qb4 {[%clk 0:00:14.6]} 67. Qg3+
{[%clk 0:00:12.1]} 67... Kb2 {[%clk 0:00:14.8]} 68. Qf2+ {[%clk 0:00:11.7]}
68... Qc2 {[%clk 0:00:15.1]} 69. Qf1 {[%clk 0:00:10.6]} 69... Qd4+ {[%clk
0:00:15.4]} 70. Kg6 {[%clk 0:00:10.8]} 70... c4 {[%clk 0:00:14.8]} 71. Kh7
{[%clk 0:00:09.3]} 71... Qdd3 {[%clk 0:00:15]} 72. Kg6 {[%clk 0:00:08.9]} 72...
Qxf1 {[%clk 0:00:15]} 0-1

[Event "Early-Titled-Tuesday-Blitz-February-06-2024"]
[Site "Chess.com"]
[Date "2024.02.06"]
[Round "2"]
[White "Jojo_898"]
[Black "AlexTruskavetsky"]
[Result "0-1"]
[WhiteElo "2449"]
[BlackElo "2710"]
[TimeControl "180+1"]
[EndTime "8:18:56 PST"]
[Termination "AlexTruskavetsky won by resignation"]

1. e4 {[%clk 0:03:00.9]} 1... c5 {[%clk 0:02:57.1]} 2. Nf3 {[%clk 0:03:00.6]}
2... Nc6 {[%clk 0:02:57]} 3. c3 {[%clk 0:03:00.5]} 3... Nf6 {[%clk 0:02:56.7]}
4. Bd3 {[%clk 0:03:00.4]} 4... d5 {[%clk 0:02:56.6]} 5. e5 {[%clk 0:02:59.5]}
5... Nd7 {[%clk 0:02:56.8]} 6. Qe2 {[%clk 0:02:57.8]} 6... e6 {[%clk 0:02:55.8]}
7. O-O {[%clk 0:02:57]} 7... Qc7 {[%clk 0:02:56.2]} 8. Bc2 {[%clk 0:02:56.7]}
8... f6 {[%clk 0:02:55.2]} 9. exf6 {[%clk 0:02:53.2]} 9... Nxf6 {[%clk
0:02:54.7]} 10. d4 {[%clk 0:02:51.8]} 10... cxd4 {[%clk 0:02:52.7]} 11. cxd4
{[%clk 0:02:51.5]} 11... Bd6 {[%clk 0:02:53.2]} 12. Nc3 {[%clk 0:02:50.6]} 12...
a6 {[%clk 0:02:53.2]} 13. Bg5 {[%clk 0:02:43.9]} 13... O-O {[%clk 0:02:53.2]}
14. Rac1 {[%clk 0:02:43.4]} 14... Qf7 {[%clk 0:02:51.3]} 15. Ne5 {[%clk
0:02:28]} 15... Nxd4 {[%clk 0:02:51]} 16. Nxf7 {[%clk 0:02:24.6]} 16... Nxe2+
{[%clk 0:02:51]} 17. Kh1 {[%clk 0:02:19.2]} 17... Rxf7 {[%clk 0:02:42.5]} 18.
Nxe2 {[%clk 0:02:18.7]} 18... Bd7 {[%clk 0:02:41.8]} 19. Nc3 {[%clk 0:02:12.2]}
19... Raf8 {[%clk 0:02:36.7]} 20. f3 {[%clk 0:02:12.3]} 20... Bc6 {[%clk
0:02:34.6]} 21. Rfe1 {[%clk 0:02:10.1]} 21... Re8 {[%clk 0:02:31.9]} 22. Rcd1
{[%clk 0:02:08.6]} 22... h6 {[%clk 0:02:29.7]} 23. Bh4 {[%clk 0:02:08.1]} 23...
g5 {[%clk 0:02:26]} 24. Bf2 {[%clk 0:02:06.8]} 24... Kg7 {[%clk 0:02:25.9]} 25.
Re2 {[%clk 0:02:00]} 25... g4 {[%clk 0:02:15.4]} 26. Bh4 {[%clk 0:01:42.2]}
26... h5 {[%clk 0:01:30.3]} 27. Rde1 {[%clk 0:01:37.7]} 27... e5 {[%clk
0:01:23.5]} 28. Bb3 {[%clk 0:01:37.3]} 28... gxf3 {[%clk 0:01:13.9]} 29. gxf3
{[%clk 0:01:36.8]} 29... d4 {[%clk 0:01:14.2]} 30. Rg2+ {[%clk 0:01:25.9]} 30...
Kf8 {[%clk 0:01:14.3]} 31. Bxf7 {[%clk 0:01:23.4]} 31... Kxf7 {[%clk 0:01:14.8]}
32. Ne4 {[%clk 0:01:22.4]} 32... Nxe4 {[%clk 0:01:06.2]} 33. fxe4 {[%clk
0:01:22.7]} 33... Bb5 {[%clk 0:01:01.6]} 34. Rg5 {[%clk 0:01:13.3]} 34... d3
{[%clk 0:00:58.9]} 35. Rf1+ {[%clk 0:01:09]} 35... Ke6 {[%clk 0:00:59.2]} 36.
Rg6+ {[%clk 0:01:07.7]} 36... Kd7 {[%clk 0:00:59.5]} 37. Rf7+ {[%clk 0:01:08.3]}
37... Kc6 {[%clk 0:00:58.8]} 38. Rff6 {[%clk 0:01:03.7]} 38... Rd8 {[%clk
0:00:58.1]} 39. Re6 {[%clk 0:01:02.4]} 39... d2 {[%clk 0:00:55.8]} 40. Rg1
{[%clk 0:00:59.5]} 40... Rc8 {[%clk 0:00:12.8]} 41. Be7 {[%clk 0:00:48.8]} 41...
Kd7 {[%clk 0:00:10.4]} 42. Rxd6+ {[%clk 0:00:48.9]} 42... Kxe7 {[%clk
0:00:11.3]} 43. Rxd2 {[%clk 0:00:49.6]} 43... Rc4 {[%clk 0:00:11]} 44. Re1
{[%clk 0:00:47.7]} 44... Bc6 {[%clk 0:00:11.2]} 45. Rde2 {[%clk 0:00:48.1]}
45... h4 {[%clk 0:00:11.8]} 46. Kg2 {[%clk 0:00:48.3]} 46... Rd4 {[%clk
0:00:12.3]} 47. Kf3 {[%clk 0:00:47.5]} 47... Rd3+ {[%clk 0:00:10.3]} 48. Re3
{[%clk 0:00:48.1]} 48... Rd2 {[%clk 0:00:10.5]} 49. R1e2 {[%clk 0:00:48.6]}
49... Rd1 {[%clk 0:00:11.2]} 50. Rg2 {[%clk 0:00:48]} 50... h3 {[%clk 0:00:10]}
51. Rg7+ {[%clk 0:00:46.5]} 51... Kf6 {[%clk 0:00:10.2]} 52. Rh7 {[%clk
0:00:45.4]} 52... Bd7 {[%clk 0:00:08.6]} 53. Ke2 {[%clk 0:00:43.9]} 53... Bg4+
{[%clk 0:00:08.4]} 54. Kf2 {[%clk 0:00:42.3]} 54... Rb1 {[%clk 0:00:08.8]} 55.
Kg3 {[%clk 0:00:41.4]} 55... Be6 {[%clk 0:00:08.4]} 56. Rh6+ {[%clk 0:00:38.9]}
56... Ke7 {[%clk 0:00:08.4]} 57. Rc3 {[%clk 0:00:37.5]} 57... Rxb2 {[%clk
0:00:08]} 58. Rc7+ {[%clk 0:00:37.3]} 58... Kd8 {[%clk 0:00:08.5]} 59. Rg7
{[%clk 0:00:33.9]} 59... Rg2+ {[%clk 0:00:08.7]} 60. Kf3 {[%clk 0:00:32.2]}
60... Rxg7 {[%clk 0:00:08]} 61. Rxe6 {[%clk 0:00:32.9]} 61... Rg2 {[%clk
0:00:08.7]} 62. Rb6 {[%clk 0:00:28.6]} 62... Kc7 {[%clk 0:00:07.8]} 63. Re6
{[%clk 0:00:27.2]} 63... Rxh2 {[%clk 0:00:08.3]} 64. Kg3 {[%clk 0:00:27.6]}
64... Re2 {[%clk 0:00:07]} 65. Kxh3 {[%clk 0:00:27.1]} 65... Rxe4 {[%clk
0:00:07]} 66. Kg3 {[%clk 0:00:27.7]} 66... Re2 {[%clk 0:00:07.2]} 0-1

[Event "Early-Titled-Tuesday-Blitz-February-06-2024"]
[Site "Chess.com"]
[Date "2024.02.06"]
[Round "2"]
[White "guillembaches"]
[Black "FaustinoOro"]
[Result "1/2-1/2"]
[WhiteElo "2565"]
[BlackElo "2778"]
[TimeControl "180+1"]
[EndTime "8:18:57 PST"]
[Termination "Game drawn - timeout vs insufficient material"]

1. d4 {[%clk 0:03:00.9]} 1... Nf6 {[%clk 0:02:59.4]} 2. Nf3 {[%clk 0:03:01.5]}
2... d5 {[%clk 0:02:59.2]} 3. Bg5 {[%clk 0:03:01.9]} 3... Ne4 {[%clk 0:02:58]}
4. Bh4 {[%clk 0:03:02]} 4... c5 {[%clk 0:02:56.9]} 5. e3 {[%clk 0:03:02.2]} 5...
Nc6 {[%clk 0:02:53.6]} 6. c3 {[%clk 0:03:01.8]} 6... Bf5 {[%clk 0:02:44.7]} 7.
Nbd2 {[%clk 0:02:59.6]} 7... Nxd2 {[%clk 0:02:39]} 8. Qxd2 {[%clk 0:02:58.7]}
8... Qb6 {[%clk 0:02:33.7]} 9. Be2 {[%clk 0:02:54.5]} 9... e6 {[%clk 0:02:32.9]}
10. O-O {[%clk 0:02:53.7]} 10... Bd6 {[%clk 0:02:28.1]} 11. Bg3 {[%clk
0:02:43.6]} 11... Bxg3 {[%clk 0:02:20.1]} 12. hxg3 {[%clk 0:02:44.5]} 12... O-O
{[%clk 0:02:18.2]} 13. Nh4 {[%clk 0:02:40.5]} 13... Be4 {[%clk 0:02:17.6]} 14.
f3 {[%clk 0:02:38.1]} 14... Bg6 {[%clk 0:02:17.2]} 15. Nxg6 {[%clk 0:02:37.9]}
15... hxg6 {[%clk 0:02:18.1]} 16. f4 {[%clk 0:02:33.4]} 16... Rad8 {[%clk
0:02:13.6]} 17. g4 {[%clk 0:02:32.6]} 17... Qc7 {[%clk 0:02:03.2]} 18. g5 {[%clk
0:02:20.3]} 18... f5 {[%clk 0:01:37.1]} 19. gxf6 {[%clk 0:02:15.7]} 19... gxf6
{[%clk 0:01:35.9]} 20. Rf3 {[%clk 0:02:07.2]} 20... Kg7 {[%clk 0:01:30.5]} 21.
Raf1 {[%clk 0:01:58.8]} 21... Qe7 {[%clk 0:01:21.2]} 22. Rg3 {[%clk 0:01:48.1]}
22... f5 {[%clk 0:01:13.2]} 23. Rg5 {[%clk 0:01:45.8]} 23... Rh8 {[%clk
0:00:53.3]} 24. Rf3 {[%clk 0:01:36.4]} 24... cxd4 {[%clk 0:00:46.2]} 25. exd4
{[%clk 0:01:35.7]} 25... Rh6 {[%clk 0:00:44]} 26. Bd3 {[%clk 0:01:33.9]} 26...
Rdh8 {[%clk 0:00:41.9]} 27. Kf2 {[%clk 0:01:33.7]} 27... Qd6 {[%clk 0:00:38.9]}
28. Qe3 {[%clk 0:01:31.9]} 28... Nb8 {[%clk 0:00:37.5]} 29. Qe5+ {[%clk
0:01:20.8]} 29... Qxe5 {[%clk 0:00:37.3]} 30. fxe5 {[%clk 0:01:21.3]} 30... Rh1
{[%clk 0:00:35.2]} 31. Bf1 {[%clk 0:01:00.7]} 31... Nd7 {[%clk 0:00:30.7]} 32.
b3 {[%clk 0:00:56.4]} 32... R1h4 {[%clk 0:00:27.3]} 33. Rgg3 {[%clk 0:00:52.5]}
33... Kh6 {[%clk 0:00:22.9]} 34. Rh3 {[%clk 0:00:49.5]} 34... Kg7 {[%clk
0:00:22.3]} 35. Rxh4 {[%clk 0:00:46.9]} 35... Rxh4 {[%clk 0:00:23.2]} 36. g3
{[%clk 0:00:42.7]} 36... Rh2+ {[%clk 0:00:21.2]} 37. Bg2 {[%clk 0:00:39.4]}
37... Nb6 {[%clk 0:00:21.6]} 38. a4 {[%clk 0:00:36.6]} 38... a5 {[%clk
0:00:20.3]} 39. g4 {[%clk 0:00:31.1]} 39... Rh8 {[%clk 0:00:19.9]} 40. gxf5
{[%clk 0:00:29.7]} 40... gxf5 {[%clk 0:00:20.8]} 41. Rg3+ {[%clk 0:00:29.2]}
41... Kf7 {[%clk 0:00:20.8]} 42. Rh3 {[%clk 0:00:24.9]} 42... Rxh3 {[%clk
0:00:10.9]} 43. Bxh3 {[%clk 0:00:24.6]} 43... Nc8 {[%clk 0:00:11.6]} 44. c4
{[%clk 0:00:22.7]} 44... Ne7 {[%clk 0:00:09.6]} 45. Bg2 {[%clk 0:00:22.6]} 45...
Ke8 {[%clk 0:00:03.1]} 46. cxd5 {[%clk 0:00:19.3]} 46... exd5 {[%clk 0:00:04]}
47. Ke3 {[%clk 0:00:19.4]} 47... Kd7 {[%clk 0:00:04.6]} 48. Kf4 {[%clk
0:00:19.7]} 48... Ke6 {[%clk 0:00:05.3]} 49. Bh3 {[%clk 0:00:19.9]} 49... b6
{[%clk 0:00:04.8]} 50. Kg5 {[%clk 0:00:20.2]} 50... Nc6 {[%clk 0:00:03.4]} 51.
Bxf5+ {[%clk 0:00:19.1]} 51... Ke7 {[%clk 0:00:04]} 52. Bh3 {[%clk 0:00:11.9]}
52... Nxd4 {[%clk 0:00:04.3]} 53. Bg2 {[%clk 0:00:11.9]} 53... Ke6 {[%clk
0:00:03.8]} 54. Kf4 {[%clk 0:00:11]} 54... Nxb3 {[%clk 0:00:03.9]} 55. Bh3+
{[%clk 0:00:11]} 55... Ke7 {[%clk 0:00:04.3]} 56. Bg2 {[%clk 0:00:11.3]} 56...
d4 {[%clk 0:00:03.5]} 57. Ke4 {[%clk 0:00:08.7]} 57... Nc5+ {[%clk 0:00:01.7]}
58. Kxd4 {[%clk 0:00:08.8]} 58... Nxa4 {[%clk 0:00:02.6]} 59. Kc4 {[%clk
0:00:09.1]} 59... Nc5 {[%clk 0:00:02.8]} 60. Kb5 {[%clk 0:00:09.1]} 60... a4
{[%clk 0:00:03.3]} 61. Bd5 {[%clk 0:00:08.3]} 61... a3 {[%clk 0:00:02.5]} 62.
Kxb6 {[%clk 0:00:07.8]} 62... Na4+ {[%clk 0:00:02.4]} 63. Ka5 {[%clk 0:00:03]}
63... Nc3 {[%clk 0:00:02.9]} 64. Bc4 {[%clk 0:00:03]} 64... Kd7 {[%clk
0:00:02.5]} 65. Kb4 {[%clk 0:00:02.5]} 65... a2 {[%clk 0:00:03.4]} 66. Bxa2
{[%clk 0:00:02]} 66... Nxa2+ {[%clk 0:00:04.3]} 1/2-1/2

[Event "Early-Titled-Tuesday-Blitz-February-06-2024"]
[Site "Chess.com"]
[Date "2024.02.06"]
[Round "2"]
[White "DavidGavrilescu18"]
[Black "tetrix83"]
[Result "1-0"]
[WhiteElo "2776"]
[BlackElo "2554"]
[TimeControl "180+1"]
[EndTime "8:18:57 PST"]
[Termination "DavidGavrilescu18 won on time"]

1. e4 {[%clk 0:03:00.9]} 1... c5 {[%clk 0:02:58.5]} 2. Nf3 {[%clk 0:03:00.7]}
2... e6 {[%clk 0:02:56.7]} 3. b3 {[%clk 0:02:58.6]} 3... Nf6 {[%clk 0:02:52.8]}
4. e5 {[%clk 0:02:55.6]} 4... Nd5 {[%clk 0:02:52.3]} 5. Bb2 {[%clk 0:02:54.7]}
5... Nc6 {[%clk 0:02:51.3]} 6. g3 {[%clk 0:02:55.2]} 6... Be7 {[%clk 0:02:51]}
7. Bg2 {[%clk 0:02:55.4]} 7... O-O {[%clk 0:02:50.7]} 8. O-O {[%clk 0:02:55.8]}
8... d6 {[%clk 0:02:50.1]} 9. exd6 {[%clk 0:02:55.6]} 9... Bxd6 {[%clk
0:02:49.5]} 10. Na3 {[%clk 0:02:56.1]} 10... b6 {[%clk 0:02:48.3]} 11. Nc4
{[%clk 0:02:55.9]} 11... Be7 {[%clk 0:02:43.4]} 12. d4 {[%clk 0:02:54.2]} 12...
Bb7 {[%clk 0:02:39.8]} 13. Qd2 {[%clk 0:02:46.6]} 13... Qc7 {[%clk 0:02:37.1]}
14. dxc5 {[%clk 0:02:45.9]} 14... Bxc5 {[%clk 0:02:35.9]} 15. Qg5 {[%clk
0:02:37.3]} 15... f6 {[%clk 0:02:34.6]} 16. Qg4 {[%clk 0:02:37.5]} 16... Rae8
{[%clk 0:02:30]} 17. Rfe1 {[%clk 0:02:36.7]} 17... Bc8 {[%clk 0:02:26.6]} 18.
Rad1 {[%clk 0:02:29.7]} 18... e5 {[%clk 0:02:18.6]} 19. Qe4 {[%clk 0:02:29.4]}
19... Nde7 {[%clk 0:02:17.1]} 20. Nh4 {[%clk 0:02:26.3]} 20... b5 {[%clk
0:02:12.6]} 21. Ne3 {[%clk 0:02:25.4]} 21... Be6 {[%clk 0:02:10.4]} 22. Nhf5
{[%clk 0:02:21.7]} 22... Nxf5 {[%clk 0:01:41]} 23. Nxf5 {[%clk 0:02:15.5]} 23...
Ne7 {[%clk 0:01:38.4]} 24. Ne3 {[%clk 0:02:06.2]} 24... Bf7 {[%clk 0:01:31.5]}
25. h4 {[%clk 0:02:04.5]} 25... Rd8 {[%clk 0:01:17.4]} 26. Qf3 {[%clk
0:01:43.4]} 26... Bb4 {[%clk 0:01:07.2]} 27. c3 {[%clk 0:01:40.5]} 27... Bxc3
{[%clk 0:00:59.7]} 28. Rc1 {[%clk 0:01:25.8]} 28... b4 {[%clk 0:00:59.5]} 29.
Bxc3 {[%clk 0:01:02.7]} 29... bxc3 {[%clk 0:00:58.7]} 30. Nc4 {[%clk 0:01:02.3]}
30... Nd5 {[%clk 0:00:56]} 31. h5 {[%clk 0:00:50.1]} 31... h6 {[%clk 0:00:54.8]}
32. Qg4 {[%clk 0:00:47.5]} 32... Nb4 {[%clk 0:00:32.4]} 33. Be4 {[%clk
0:00:47.5]} 33... Nxa2 {[%clk 0:00:29.4]} 34. Rc2 {[%clk 0:00:44.1]} 34... Nb4
{[%clk 0:00:28.3]} 35. Rxc3 {[%clk 0:00:44.6]} 35... Qc8 {[%clk 0:00:27.3]} 36.
Bf5 {[%clk 0:00:37.5]} 36... Qb7 {[%clk 0:00:26.7]} 37. Ne3 {[%clk 0:00:33.5]}
37... Nd5 {[%clk 0:00:25.7]} 38. Be4 {[%clk 0:00:33.2]} 38... Nxe3 {[%clk
0:00:24.7]} 39. Rcxe3 {[%clk 0:00:33.3]} 39... Qc8 {[%clk 0:00:24.2]} 40. Bf5
{[%clk 0:00:33.4]} 40... Qc6 {[%clk 0:00:23.8]} 41. Kh2 {[%clk 0:00:27.8]} 41...
Rd2 {[%clk 0:00:22.4]} 42. R1e2 {[%clk 0:00:28.1]} 42... Rd4 {[%clk 0:00:21.7]}
43. Re4 {[%clk 0:00:26.9]} 43... Rxe4 {[%clk 0:00:20.2]} 44. Bxe4 {[%clk
0:00:25.6]} 44... Qe6 {[%clk 0:00:20.1]} 45. Qf3 {[%clk 0:00:22.3]} 45... Qxb3
{[%clk 0:00:18.2]} 46. Qf5 {[%clk 0:00:22.4]} 46... Rd8 {[%clk 0:00:17.8]} 47.
Re3 {[%clk 0:00:15.4]} 47... Qe6 {[%clk 0:00:16.3]} 48. Qh7+ {[%clk 0:00:15.4]}
48... Kf8 {[%clk 0:00:16.4]} 49. Bf5 {[%clk 0:00:15.7]} 49... Qc4 {[%clk
0:00:14.4]} 50. Bd3 {[%clk 0:00:08.6]} 50... Qa2 {[%clk 0:00:13.1]} 51. Qf5
{[%clk 0:00:07.7]} 51... Be6 {[%clk 0:00:11.2]} 52. Qf3 {[%clk 0:00:06.9]} 52...
Kg8 {[%clk 0:00:09.8]} 53. Re2 {[%clk 0:00:05.5]} 53... Qd5 {[%clk 0:00:08.9]}
54. Be4 {[%clk 0:00:05.6]} 54... Qd7 {[%clk 0:00:08.7]} 55. Qe3 {[%clk
0:00:04.6]} 55... Bg4 {[%clk 0:00:08.2]} 56. Rb2 {[%clk 0:00:04]} 56... Bxh5
{[%clk 0:00:07.7]} 57. Rb7 {[%clk 0:00:04.3]} 57... Qd4 {[%clk 0:00:07.4]} 58.
Qb3+ {[%clk 0:00:04]} 58... Kh8 {[%clk 0:00:06.5]} 59. Qc2 {[%clk 0:00:04.4]}
59... Bg4 {[%clk 0:00:05]} 60. Rc7 {[%clk 0:00:02.3]} 60... Rf8 {[%clk
0:00:03.8]} 61. f3 {[%clk 0:00:02.5]} 61... Be6 {[%clk 0:00:03.2]} 62. g4 {[%clk
0:00:03.1]} 62... Bg8 {[%clk 0:00:02.8]} 63. Rc3 {[%clk 0:00:03.3]} 63... Qe3
{[%clk 0:00:03.1]} 64. Rxe3 {[%clk 0:00:03.6]} 64... f5 {[%clk 0:00:03.9]} 65.
Bxf5 {[%clk 0:00:03.7]} 65... g6 {[%clk 0:00:03.9]} 66. Rxe5 {[%clk 0:00:03.8]}
66... gxf5 {[%clk 0:00:03.7]} 67. Rxf5 {[%clk 0:00:04.7]} 67... Kg7 {[%clk
0:00:04.1]} 68. Qc3+ {[%clk 0:00:05]} 1-0